bitfinex/quotes_ETHUSD_20240709
["timestamp","ask_amount","ask_price","bid_price","bid_amount"]
[1720507935740,1.12160899,3088.7,3088.2,3.23802]
[1720507936374,1.12160899,3088.7,3088.3,3.23801]
[1720507936749,1.12160899,3088.7,3088.1,3.23816]
[1720507936957,1.12160899,3088.7,3088.2,3.23808]
[1720507937156,0.05940367,3088.6,3088.3,3.23802]
[1720507937651,0.33868277,3088.8,3088.4,3.23791]
[1720507937982,1.12162069,3088.7,3088.6,3.23771]
[1720507938278,0.33868277,3088.8,3088.6,6.47542]
[1720507938636,0.33868277,3088.8,3088.6,3.23771]
[1720507938838,1.1215978,3088.7,3088.6,3.23771]
[1720507940498,0.33868277,3088.8,3088.6,3.23771]
[1720507940809,0.33868277,3088.8,3088.4,3.23787]
[1720507940810,1.12160383,3088.7,3088.5,3.23778]
[1720507941007,0.33868277,3088.8,3088.5,3.23778]
[1720507941223,1.12159284,3088.7,3088.5,3.23778]
[1720507941510,0.33868277,3088.8,3088.6,3.23771]
[1720507941666,1.12159813,3088.7,3088.6,3.23771]
[1720507942005,0.33868277,3088.8,3088.6,3.23771]
[1720507942214,0.33868277,3088.8,3088.2,3.23808]
[1720507942367,0.33868277,3088.8,3088.3,3.23796]
[1720507942368,1.12160721,3088.7,3088.3,3.23796]
[1720507942570,0.33868277,3088.8,3088.3,3.23796]
[1720507942864,1.12160811,3088.7,3088.0,3.23832]
[1720507943065,2.53501807,3088.6,3088.0,3.23832]
[1720507943262,2.53501807,3088.5,3088.0,3.23832]
[1720507943492,1.12160811,3088.4,3088.0,3.23832]
[1720507943755,2.13800622,3088.5,3088.0,3.23832]
[1720507943866,1.12160811,3088.3,3087.9,3.23839]
[1720507944068,1.12185002,3088.2,3087.9,3.23839]
[1720507944390,1.12185002,3088.1,3087.6,3.23874]
[1720507944591,2.3893,3088.3,3087.6,3.23874]
[1720507944592,1.12185002,3088.0,3087.6,3.23874]
[1720507944796,1.12185002,3088.2,3087.6,3.23874]
[1720507944967,1.41363194,3088.1,3087.6,3.23874]
[1720507945178,1.12185002,3088.0,3087.6,3.23874]
[1720507945602,1.12185002,3088.1,3087.6,3.23874]
[1720507945766,2.3893,3088.3,3087.6,3.23874]
[1720507945767,1.12189218,3088.0,3087.6,3.23874]
[1720507945972,1.01639811,3088.2,3087.7,3.23865]
[1720507946268,2.53548637,3088.1,3087.7,3.23865]
[1720507946577,1.12189356,3088.0,3087.7,3.23865]
[1720507947209,1.01639811,3088.1,3087.7,3.23865]
[1720507947537,1.121961,3088.0,3087.7,3.23865]
[1720507947801,1.12195102,3087.9,3087.7,3.23865]
[1720507948009,1.01769802,3088.3,3087.7,3.23865]
[1720507948183,1.12183177,3088.2,3088.0,3.23826]
[1720507948503,4.01769802,3088.4,3088.0,3.23826]
[1720507948711,2.53538115,3088.3,3088.0,3.23826]
[1720507948918,1.12185007,3088.2,3087.8,3.23847]
[1720507949097,3.5531121,3088.2,3087.2,0.06476084]
[1720507949301,3.5531121,3088.2,3088.0,3.23831]
[1720507949302,1.12185007,3088.1,3088.0,3.23831]
[1720507949519,2.53541503,3088.1,3088.0,3.23831]
[1720507949669,2.53541503,3088.1,3087.7,3.23865]
[1720507949866,2.53547503,3088.0,3087.4,3.23897]
[1720507950108,1.01769802,3088.1,3087.0,1.679]
[1720507950109,1.01769802,3088.1,3087.6,3.23866]
[1720507950320,1.12187834,3088.0,3087.6,3.23866]
[1720507950535,1.01898046,3088.1,3087.6,3.23866]
[1720507950669,1.41357111,3088.0,3087.6,3.23866]
[1720507950869,1.41357111,3088.0,3087.7,3.23863]
[1720507951389,1.01898046,3088.3,3087.9,3.23844]
[1720507951587,2.03697184,3088.5,3088.1,3.23813]
[1720507951588,1.35765154,3088.5,3088.1,3.23813]
[1720507951913,1.41333089,3088.4,3088.1,3.23813]
[1720507952403,0.05902786,3088.3,3088.2,3.23813]
[1720507952916,1.35765154,3088.5,3088.4,3.23792]
[1720507953122,0.33867108,3088.5,3088.4,6.47584]
[1720507953917,0.33867108,3088.5,3088.4,12.09436]
[1720507954701,0.33867108,3088.5,3088.4,12.64436]
[1720507955087,0.33867108,3088.5,3088.4,15.64436]
[1720507955291,0.07866145,3088.5,3088.4,18.88228]
[1720507955806,7.31,3089.3,3089.2,6.47416]
[1720507956013,1.01898046,3089.6,3089.4,3.23679]
[1720507956188,1.01898046,3089.7,3089.4,3.23679]
[1720507956391,1.41287637,3089.6,3089.4,3.23679]
[1720507956790,1.01898046,3089.7,3089.4,3.23679]
[1720507956974,1.41287596,3089.6,3089.4,3.23679]
[1720507957174,1.01784388,3089.7,3089.4,3.23679]
[1720507958173,8.32784388,3089.8,3089.4,3.23679]
[1720507958375,3.55203585,3089.7,3089.4,3.23679]
[1720507958625,0.33865287,3089.6,3089.4,3.23679]
[1720507959721,0.33865287,3089.6,3089.2,3.23708]
[1720507960023,1.35649675,3089.6,3089.3,3.23697]
[1720507960190,0.33865287,3089.6,3089.3,3.23697]
[1720507960881,0.33865287,3089.6,3089.0,3.23726]
[1720507960882,0.33865287,3089.6,3089.5,3.23676]
[1720507961605,0.33865287,3089.6,3089.0,3.2372]
[1720507961815,0.33865287,3089.6,3089.2,3.23699]
[1720507962319,0.33865287,3089.6,3089.3,3.23695]
[1720507962520,0.33865287,3089.6,3089.1,3.23713]
[1720507962726,2.4271,3089.5,3088.4,2.3806]
[1720507963029,2.4271,3089.5,3089.0,3.23719]
[1720507963599,2.4271,3089.5,3089.1,3.23718]
[1720507963924,1.35526919,3089.6,3089.1,3.23718]
[1720507964704,1.35526919,3089.6,3089.0,3.23719]
[1720507964905,5.49807755,3089.5,3088.5,1.679]
[1720507965128,5.49807755,3089.5,3088.4,3.23784]
[1720507965129,1.01661632,3089.3,3088.4,3.23784]
[1720507965337,1.01661632,3089.3,3088.1,4.679]
[1720507965338,2.53446123,3089.2,3088.7,3.2376]
[1720507965510,1.59728156,3089.3,3088.6,3.23763]
[1720507965715,1.01661632,3089.1,3088.6,3.23763]
[1720507966396,1.01661632,3089.1,3088.7,3.23759]
[1720507966801,1.01661632,3089.1,3088.2,3.23804]
[1720507966802,6.49631139,3089.1,3088.2,3.23804]
[1720507967003,2.96378439,3088.9,3088.1,3.23822]
[1720507967206,2.43022215,3088.8,3088.1,3.23822]
[1720507967404,2.43022215,3088.8,3088.0,3.23831]
[1720507967405,0.05950123,3088.8,3088.0,3.23831]
[1720507967607,0.05950123,3088.8,3088.3,3.23798]
[1720507968146,1.07639324,3088.8,3088.3,3.23798]
[1720507969032,1.07639324,3088.8,3088.4,3.23791]
[1720507969033,1.31961816,3088.8,3088.4,3.23791]
[1720507969246,1.31961816,3088.8,3087.6,4.679]
[1720507969247,5.8442491,3088.7,3088.0,3.23834]
[1720507969538,3.5519491,3088.6,3088.0,3.23834]
[1720507969697,2.43023209,3088.5,3088.0,3.23834]
[1720507969897,1.01689201,3088.5,3088.0,3.23834]
[1720507970158,0.059358,3088.4,3088.0,3.23834]
[1720507970401,0.059358,3088.4,3087.8,3.23851]
[1720507970831,1.64323261,3088.4,3087.8,3.23851]
[1720507971001,2.43038189,3088.3,3087.6,3.23868]
[1720507971201,1.0760983,3088.3,3087.7,3.23863]
[1720507971635,2.43049401,3088.2,3087.5,3.23882]
[1720507971842,3.23824,3088.1,3087.3,3.23904]
[1720507972043,4.31425249,3088.1,3087.3,3.23904]
[1720507972374,8.15617947,3088.0,3087.1,3.23927]
[1720507972577,8.15617947,3088.0,3087.1,3.2392]
[1720507972578,1.01731244,3087.7,3087.1,3.2392]
[1720507972926,0.05906212,3087.6,3087.2,3.23911]
[1720507973163,0.05906212,3087.6,3087.3,3.23906]
[1720507973537,1.01731244,3087.9,3087.3,3.23906]
[1720507973738,0.05890616,3087.5,3087.4,3.23897]
[1720507973926,1.01731244,3087.9,3087.4,3.23897]
[1720507974134,0.05890616,3087.5,3087.4,3.23897]
[1720507974333,1.01731244,3087.9,3087.4,3.23897]
[1720507974559,0.05890616,3087.5,3087.4,3.23897]
[1720507974759,1.01731244,3087.9,3087.4,3.23897]
[1720507974960,0.05890616,3087.5,3087.3,3.23905]
[1720507975125,1.61082563,3087.8,3087.3,3.23905]
[1720507975332,0.05889601,3087.4,3087.3,3.23905]
[1720507975539,1.01731244,3087.8,3087.3,3.23905]
[1720507975745,0.05889601,3087.4,3087.3,3.23905]
[1720507975939,5.71609729,3087.8,3086.8,3.23955]
[1720507976139,5.71609729,3087.8,3086.4,4.679]
[1720507976140,0.05889601,3087.4,3086.9,3.23949]
[1720507976379,5.69423383,3087.7,3086.9,3.23949]
[1720507976555,2.43039978,3087.6,3086.9,3.23949]
[1720507976746,1.07511372,3087.6,3086.9,3.23949]
[1720507977866,0.05866622,3087.6,3087.1,3.23918]
[1720507978079,0.05866622,3087.6,3087.1,6.47836]
[1720507978668,1.0164475,3087.7,3087.1,3.23918]
[1720507979004,0.05864447,3087.6,3086.9,3.23945]
[1720507979164,3.23899,3087.4,3086.4,3.23991]
[1720507979504,3.23899,3087.4,3086.6,3.23979]
[1720507979505,0.05868055,3087.3,3086.6,3.23979]
[1720507980593,0.05868055,3087.3,3086.0,5.59328]
[1720507980594,0.05868055,3087.3,3086.9,3.23949]
[1720507980797,0.05868055,3087.3,3086.2,1.679]
[1720507980798,0.04578609,3087.3,3086.7,3.23967]
[1720507981009,0.79488145,3087.3,3086.7,3.23967]
[1720507981190,0.73686806,3087.3,3086.7,3.23967]
[1720507981497,2.35201339,3087.2,3086.5,3.2399]
[1720507981700,0.30888815,3087.1,3086.5,3.2399]
[1720507981860,2.35201339,3087.2,3086.6,3.2398]
[1720507982294,2.35201339,3087.2,3086.8,3.23958]
[1720507982602,0.05801339,3087.2,3086.8,6.4791]
[1720507982791,0.05801339,3087.2,3086.8,3.23952]
[1720507982991,7.31,3087.5,3086.9,3.23949]
[1720507983310,7.31,3087.5,3087.0,3.23937]
[1720507983594,0.05799953,3087.4,3087.1,3.23928]
[1720507983972,0.05799953,3087.4,3087.2,3.23917]
[1720507984172,7.31,3087.8,3087.3,0.06477792]
[1720507984378,2.59491947,3088.0,3087.9,3.23844]
[1720507984780,2.59491947,3088.0,3087.7,3.23861]
[1720507985300,2.59491947,3088.0,3087.5,3.23885]
[1720507985496,2.59491947,3088.0,3087.3,3.23897]
[1720507985803,6.56557642,3088.0,3087.2,3.23916]
[1720507985999,2.59491947,3088.0,3087.2,3.23916]
[1720507986218,2.59491947,3088.0,3087.5,3.23878]
[1720507987594,5.76915754,3088.2,3087.4,3.23896]
[1720507987803,0.731,3088.1,3087.4,3.23896]
[1720507989288,3.23835,3088.0,3087.2,3.23916]
[1720507989696,3.23835,3088.0,3086.6,1.679]
[1720507989697,3.23835,3088.0,3087.0,3.23938]
[1720507989906,4.75752896,3087.9,3087.2,3.23915]
[1720507990107,3.9693,3088.1,3087.2,3.23915]
[1720507990319,1.12204947,3088.0,3087.2,3.23915]
[1720507990505,0.731,3088.1,3087.3,3.23906]
[1720507990689,3.731,3088.1,3087.3,3.23906]
[1720507990885,1.12206129,3088.0,3087.5,3.23876]
[1720507991218,3.0,3088.1,3087.3,3.23905]
[1720507991422,5.23733497,3088.0,3087.2,3.23917]
[1720507991721,1.12207922,3087.9,3087.2,3.23917]
[1720507991904,1.12207922,3087.9,3087.0,3.23931]
[1720507992107,1.12207922,3087.9,3086.9,3.23946]
[1720507992108,1.12213383,3087.8,3087.1,3.23926]
[1720507992294,1.12213383,3087.7,3087.1,3.23926]
[1720507992481,0.8237335,3087.9,3087.1,3.23926]
[1720507992676,1.12213952,3087.8,3087.2,3.23916]
[1720507993020,0.8237335,3087.9,3087.3,3.23905]
[1720507993191,3.0,3088.1,3087.5,3.23879]
[1720507993192,1.12205509,3087.8,3087.5,3.23879]
[1720507993389,3.0,3088.1,3087.5,3.23879]
[1720507993710,1.12203024,3088.0,3087.6,3.23875]
[1720507993887,1.12203024,3087.9,3087.6,3.23875]
[1720507994088,1.12203024,3088.0,3087.6,3.23875]
[1720507994312,1.12203024,3087.9,3087.6,3.23875]
[1720507994631,3.0,3088.1,3087.3,3.23904]
[1720507994632,1.12203024,3087.8,3087.3,3.23904]
[1720507994775,1.12203024,3088.0,3087.1,3.23925]
[1720507994982,1.12203024,3088.0,3087.3,3.23907]
[1720507995283,1.12207349,3087.9,3087.4,3.23896]
[1720507995483,1.62763135,3088.0,3087.4,3.23896]
[1720507995484,1.12207349,3087.8,3087.4,3.23896]
[1720507995680,1.62763135,3088.0,3087.2,3.2391]
[1720507995681,1.12208832,3087.7,3087.2,3.2391]
[1720507996006,3.49418832,3087.6,3087.1,3.23924]
[1720507996188,1.12208832,3087.5,3087.1,3.23924]
[1720507996391,1.12215022,3087.4,3087.1,3.23924]
[1720507996620,2.3721,3087.6,3087.1,3.23924]
[1720507996802,1.12214174,3087.5,3087.1,3.23924]
[1720507996999,1.12214174,3087.4,3087.1,3.23924]
[1720507997203,1.12214174,3087.3,3087.1,3.23924]
[1720507997549,1.12214174,3087.3,3086.9,3.23946]
[1720507997550,0.05808882,3087.2,3086.9,3.23945]
[1720507997908,2.3721,3087.6,3087.1,3.23922]
[1720507998109,1.18027214,3087.5,3087.1,3.23922]
[1720507998336,1.12215286,3087.4,3087.1,3.23922]
[1720507998542,0.35523721,3087.4,3086.7,3.23962]
[1720507998704,1.18028584,3087.3,3086.7,3.23962]
[1720507998903,1.12214647,3087.2,3086.7,3.23962]
[1720507999142,0.05819299,3087.1,3086.7,3.23962]
[1720507999340,1.12214647,3087.0,3086.7,3.23962]
[1720507999544,1.12214647,3087.0,3086.5,3.23989]
[1720507999838,0.05819207,3086.9,3086.5,3.23989]
[1720508000039,1.12214647,3086.8,3086.5,3.23989]
[1720508000549,0.05810893,3086.7,3086.6,8.89872]
[1720508000841,0.05810893,3086.7,3086.6,15.20332145]
[1720508001142,5.76915754,3087.9,3087.4,3.23894]
[1720508001453,5.76915754,3087.9,3087.2,3.23911]
[1720508001454,1.12205435,3087.8,3087.2,3.2391]
[1720508001671,3.29609992,3087.8,3087.0,3.23935]
[1720508001963,1.12207718,3087.7,3087.0,3.23935]
[1720508002118,1.12207718,3087.6,3087.0,3.23935]
[1720508002469,1.17968251,3087.5,3086.9,3.23945]
[1720508002632,1.12207718,3087.4,3086.9,3.23945]
[1720508002951,0.05760682,3087.3,3087.0,3.23934]
[1720508003170,0.05760682,3087.3,3087.2,3.23918]
[1720508003317,1.17968489,3087.3,3087.2,3.23918]
[1720508004970,0.05760682,3087.3,3087.2,3.23918]
[1720508005342,5.76915754,3087.9,3087.1,3.23928]
[1720508005577,0.05760682,3087.3,3087.1,3.23928]
[1720508005787,5.76915754,3087.9,3087.2,3.23918]
[1720508005934,1.12210726,3087.8,3087.2,3.23918]
[1720508006269,1.12210726,3087.7,3087.6,3.23876]
[1720508006452,5.76915754,3087.9,3087.8,3.23855]
[1720508006660,3.23,3088.3,3088.2,6.47626]
[1720508006887,4.35172495,3088.3,3088.2,6.47626]
[1720508007175,5.76915754,3088.4,3088.3,3.23802]
[1720508007369,0.3389181,3088.3,3088.0,3.23833]
[1720508007664,0.3389181,3088.3,3088.2,3.23813]
[1720508008171,1.46067665,3088.3,3088.2,3.23813]
[1720508008474,2.18366007,3088.3,3087.6,3.23875]
[1720508008631,1.12175855,3088.2,3087.6,3.23875]
[1720508009681,1.12175855,3088.2,3087.2,2.4785]
[1720508009682,2.42746966,3088.1,3087.4,3.23897]
[1720508009985,1.12175855,3088.0,3087.6,3.23869]
[1720508010484,2.13549841,3088.1,3087.6,3.23869]
[1720508010695,2.53542444,3088.0,3087.6,3.23869]
[1720508010983,1.12175855,3087.9,3087.6,3.23869]
[1720508011149,1.12175855,3088.0,3087.6,3.23869]
[1720508011350,2.53562994,3087.9,3087.6,3.23869]
[1720508011602,1.12196015,3087.8,3087.6,3.23869]
[1720508011786,1.12196015,3087.9,3087.4,6.47787]
[1720508011995,1.12196015,3087.9,3087.0,4.91838]
[1720508011996,2.5356781,3087.8,3087.3,3.23903]
[1720508012296,1.12196015,3087.7,3087.5,3.23884]
[1720508012509,0.05606263,3087.8,3087.2,3.23911]
[1720508012691,6.7828974,3088.1,3087.2,3.23911]
[1720508012692,5.76915754,3088.1,3088.0,3.23834]
[1720508012876,5.76800086,3088.1,3088.0,3.23834]
[1720508013209,5.82405177,3088.1,3088.0,3.23834]
[1720508013565,5.82405177,3088.1,3088.0,6.47668]
[1720508015963,5.82405177,3088.1,3088.0,3.23834]
[1720508017165,0.6723479,3088.1,3087.7,3.23861]
[1720508017371,0.6723479,3088.1,3087.8,3.23853]
[1720508017372,0.05605091,3088.1,3087.8,3.23853]
[1720508017676,0.3389181,3088.3,3087.8,3.23853]
[1720508017882,0.05639971,3088.2,3087.8,3.23853]
[1720508018085,0.3389181,3088.3,3087.8,3.23853]
[1720508018293,0.05639971,3088.2,3087.8,3.23853]
[1720508018463,1.35680552,3088.3,3087.7,3.23861]
[1720508018666,3.60964091,3088.2,3087.7,3.23861]
[1720508018906,0.6309559,3088.1,3087.7,3.23861]
[1720508019115,0.0563471,3088.0,3087.7,3.23861]
[1720508019513,0.0563471,3088.0,3087.5,3.23886]
[1720508019514,0.0563471,3088.0,3087.5,3.23884]
[1720508019695,0.0563471,3088.0,3087.0,1.679]
[1720508019696,0.0563471,3088.0,3087.4,3.23894]
[1720508019898,0.22686614,3088.0,3087.4,3.23894]
[1720508020222,0.22686614,3088.0,3087.2,3.23916]
[1720508020379,3.55359443,3087.9,3087.2,3.23916]
[1720508020580,1.41374294,3087.8,3087.2,3.23916]
[1720508020781,2.13995821,3087.7,3086.6,1.679]
[1720508020983,1.01788742,3087.7,3087.0,3.23934]
[1720508021312,1.01788742,3087.7,3087.1,3.23926]
[1720508021313,3.60929492,3087.6,3087.1,3.23926]
[1720508021507,3.5531193,3087.5,3087.1,3.23926]
[1720508021827,0.05615532,3087.4,3087.0,3.23937]
[1720508022027,0.05615532,3087.4,3086.8,3.23956]
[1720508022028,1.47005947,3087.4,3086.8,3.23956]
[1720508022231,0.53522048,3087.4,3086.8,3.23956]
[1720508022416,3.55331418,3087.3,3086.8,3.23956]
[1720508022721,0.05602751,3087.2,3086.8,3.23956]
[1720508022929,1.01721271,3087.3,3086.8,3.23956]
[1720508023125,0.05602751,3087.2,3086.8,3.23956]
[1720508023420,1.01721271,3087.3,3086.8,3.23956]
[1720508023579,0.05602399,3087.1,3086.8,3.23956]
[1720508023984,1.01721271,3087.3,3086.8,3.23956]
[1720508024485,2.48723659,3087.2,3086.8,3.23956]
[1720508024810,2.48723659,3087.2,3086.6,3.23979]
[1720508024811,1.41409392,3087.1,3086.6,3.23979]
[1720508025113,1.01721271,3087.1,3086.6,3.23979]
[1720508025318,0.05577901,3087.0,3086.6,3.23979]
[1720508025536,0.05577901,3087.0,3086.7,3.23969]
[1720508025883,0.29870654,3087.0,3086.4,3.23997]
[1720508026486,1.31591925,3087.0,3086.4,3.23997]
[1720508027357,0.29870654,3087.0,3086.4,3.23997]
[1720508028707,0.29870654,3087.0,3086.2,3.24023]
[1720508029036,1.01669337,3086.8,3086.2,3.24023]
[1720508029247,1.01669337,3086.8,3086.3,3.24012]
[1720508029410,0.05373595,3086.7,3086.3,3.24012]
[1720508029952,1.468069,3086.6,3085.8,3.24062]
[1720508030107,1.67965089,3086.6,3085.8,3.24062]
[1720508030456,0.05371217,3086.6,3085.8,3.24062]
[1720508030759,1.07040554,3086.6,3086.0,3.24039]
[1720508030907,1.06907799,3086.6,3086.0,3.24039]
[1720508031307,0.05371217,3086.6,3086.0,3.24039]
[1720508031730,1.42197316,3086.6,3085.8,3.24062]
[1720508031916,2.43733898,3086.6,3085.8,3.24062]
[1720508032720,5.67622674,3086.6,3085.8,3.24062]
[1720508033331,1.42197316,3086.6,3085.9,3.24053]
[1720508033821,0.05371217,3086.6,3085.9,3.24053]
[1720508034238,0.05371217,3086.6,3085.8,3.24062]
[1720508034239,0.05371217,3086.6,3086.0,3.24037]
[1720508034576,0.05371217,3086.6,3086.2,3.24016]
[1720508037372,0.05371217,3086.6,3086.0,3.24037]
[1720508038539,0.05371217,3086.6,3085.8,3.24061]
[1720508038734,1.48505347,3086.6,3085.8,3.24061]
[1720508039146,4.72488347,3086.6,3085.8,3.24061]
[1720508040281,4.72488347,3086.6,3085.9,3.24054]
[1720508040587,0.05371217,3086.6,3086.0,3.24036]
[1720508040765,0.05371217,3086.6,3086.0,3.24037]
[1720508041081,0.05371217,3086.6,3086.1,3.24031]
[1720508041788,0.05371217,3086.6,3085.8,3.2406]
[1720508041789,3.29361217,3086.6,3085.8,3.2406]
[1720508042087,4.50241163,3086.6,3085.8,3.2406]
[1720508042447,2.4107,3086.5,3085.6,3.24085]
[1720508042652,2.31725982,3085.2,3083.9,0.16762509]
[1720508042949,1.679,3084.8,3083.5,3.24305]
[1720508043147,1.679,3084.8,3083.2,2.308]
[1720508043148,0.05311667,3084.7,3083.6,0.06485369]
[1720508043466,0.23172598,3085.1,3083.6,0.06485369]
[1720508043467,3.23,3085.3,3084.3,3.24219]
[1720508043647,3.23,3085.3,3084.4,3.2421]
[1720508043648,0.05302155,3084.6,3084.4,3.2421]
[1720508043948,3.24133,3085.2,3084.1,3.24241]
[1720508044155,0.0530551,3085.1,3084.1,3.24241]
[1720508044903,0.0530551,3085.1,3084.3,3.24222]
[1720508045103,3.2944451,3085.1,3084.3,3.24222]
[1720508045272,3.2944451,3085.1,3084.1,3.24241]
[1720508045471,3.2944451,3085.1,3084.2,3.24232]
[1720508045874,3.2944451,3085.1,3083.9,3.24262]
[1720508045875,1.02961761,3085.1,3083.9,3.24262]
[1720508046195,1.02961761,3085.1,3083.8,3.24272]
[1720508046354,3.2417,3084.8,3084.0,3.24253]
[1720508046556,0.05274964,3084.7,3083.8,3.24272]
[1720508046764,0.05274964,3084.7,3083.7,2.3124]
[1720508046765,3.29455964,3084.7,3083.7,3.24278]
[1720508046969,3.24202,3084.5,3083.6,3.24293]
[1720508047203,0.05269456,3084.4,3083.6,3.24293]
[1720508047568,3.29483456,3084.4,3083.6,3.24293]
[1720508047768,0.70638002,3084.4,3083.4,3.24315]
[1720508048371,3.24233,3084.2,3083.4,3.24315]
[1720508048696,0.05266818,3084.1,3083.4,3.24315]
[1720508049097,0.05266818,3084.1,3083.2,5.56456]
[1720508050375,2.3113,3084.0,3082.9,3.24361]
[1720508050617,2.3113,3084.0,3082.4,2.4782]
[1720508050618,0.05223753,3083.9,3083.2,3.24335]
[1720508050820,0.05223753,3083.9,3082.4,5.72237]
[1720508050821,0.05223753,3083.9,3083.3,0.06485773]
[1720508051114,9.01033086,3084.2,3083.4,3.24315]
[1720508051315,0.05208577,3084.1,3083.4,3.24315]
[1720508051684,0.05208577,3084.1,3083.8,3.24274]
[1720508052189,0.05208577,3084.1,3083.5,3.30790397]
[1720508052398,14.27874086,3084.5,3083.3,3.24327]
[1720508052399,3.24235,3084.2,3083.3,3.24327]
[1720508052695,0.05002087,3084.1,3083.3,3.24327]
[1720508054016,3.29246087,3084.1,3083.3,3.24327]
[1720508054313,3.62170696,3084.1,3083.1,3.24348]
[1720508054482,3.62170696,3084.1,3083.2,3.24334]
[1720508054676,3.29246087,3084.1,3083.3,3.24326]
[1720508054884,3.24254,3084.0,3083.1,3.24348]
[1720508055117,0.0499908,3083.9,3083.1,3.24348]
[1720508055682,0.0499908,3083.9,3083.2,3.24337]
[1720508056576,0.37924388,3083.9,3083.2,3.24337]
[1720508057903,3.24275,3083.8,3083.0,3.24359]
[1720508058109,0.049917,3083.7,3083.1,3.24347]
[1720508058936,0.049917,3083.7,3082.6,3.24394]
[1720508058937,3.24309,3083.5,3082.6,3.24394]
[1720508059138,0.04983297,3083.4,3082.7,3.2439]
[1720508059356,3.29300297,3083.4,3082.7,3.2439]
[1720508059630,3.29300297,3083.4,3082.5,3.24405]
[1720508059831,3.29300297,3083.4,3082.6,3.244]
[1720508060341,0.3293003,3083.3,3082.6,3.244]
[1720508060502,0.04979562,3083.2,3082.6,3.244]
[1720508061144,0.04979562,3083.2,3082.4,3.2442]
[1720508061739,3.2435,3083.1,3082.3,3.24432]
[1720508061940,0.04965184,3083.0,3082.3,3.24432]
[1720508062629,0.04965184,3083.0,3082.4,3.24421]
[1720508062832,0.04965184,3083.0,3082.0,5.4915]
[1720508063121,0.04959789,3082.9,3082.0,2.55637093]
[1720508063298,5.76800086,3083.1,3082.0,2.55637093]
[1720508063499,0.04960807,3083.0,3082.0,2.55637093]
[1720508064311,0.04960807,3083.0,3082.7,3.24384]
[1720508065029,8.76800086,3083.4,3082.7,3.24384]
[1720508065230,0.04959789,3082.9,3082.7,3.24384]
[1720508065444,5.76800086,3083.4,3082.7,3.24384]
[1720508065640,0.04958771,3082.8,3082.7,3.24384]
[1720508065807,2.7518,3083.6,3082.4,3.24418]
[1720508066024,0.04961496,3082.8,3082.7,3.2439]
[1720508066344,0.04963199,3082.8,3082.7,3.2439]
[1720508066547,3.0,3083.5,3082.8,3.2438]
[1720508066742,0.04969306,3083.4,3082.8,3.2438]
[1720508066949,0.04969306,3083.4,3082.9,3.24369]
[1720508067118,2.7518,3083.6,3082.9,3.24369]
[1720508067119,2.4272,3083.6,3082.9,3.24369]
[1720508067321,0.0496941,3083.5,3082.9,3.24369]
[1720508067644,0.0496941,3083.5,3083.0,3.24358]
[1720508068843,0.0496941,3083.5,3083.2,3.24329]
[1720508069751,0.0496941,3083.5,3083.0,3.24349]
[1720508069947,0.0496941,3083.5,3082.9,3.24363]
[1720508070249,0.24768941,3083.4,3082.9,3.24363]
[1720508070624,0.04964964,3083.3,3082.9,3.24363]
[1720508071826,0.04964964,3083.3,3083.0,3.24358]
[1720508072022,0.04964964,3083.3,3083.2,6.48676]
[1720508072228,0.33912415,3083.9,3083.4,3.24307]
[1720508072435,1.38757309,3083.8,3083.5,3.24306]
[1720508072637,0.26403242,3083.8,3083.5,3.24306]
[1720508074055,0.33912415,3083.9,3083.5,3.24306]
[1720508074372,1.12350624,3083.8,3083.5,3.24306]
[1720508074538,0.33912415,3083.9,3083.6,3.24295]
[1720508076063,0.33912415,3083.9,3083.8,3.24275]
[1720508076466,1.46252095,3083.9,3083.8,3.24275]
[1720508078669,1.46252095,3083.9,3083.6,3.24288]
[1720508078882,0.33912415,3083.9,3083.6,3.24288]
[1720508079390,1.12342302,3083.8,3083.4,3.2431]
[1720508079596,0.33912415,3083.9,3083.4,3.2431]
[1720508079755,1.12344339,3083.8,3083.6,3.24289]
[1720508079955,0.33912415,3083.9,3083.6,3.24289]
[1720508080172,1.12343305,3083.8,3083.6,3.24289]
[1720508080460,0.33912415,3083.9,3083.6,3.24289]
[1720508080684,1.12343873,3083.8,3083.6,3.24289]
[1720508080856,0.33912415,3083.9,3083.7,3.24285]
[1720508081761,0.33912415,3083.9,3083.6,3.24289]
[1720508082491,0.33912415,3083.9,3083.7,3.24284]
[1720508083017,0.33912415,3083.9,3083.4,3.24313]
[1720508083292,0.33912415,3083.9,3083.5,3.24306]
[1720508083870,0.33912415,3083.9,3083.6,3.24296]
[1720508084380,0.33912415,3083.9,3083.7,3.24284]
[1720508084523,0.33912415,3083.9,3083.8,6.4855]
[1720508084718,0.33912415,3083.9,3083.8,9.72825]
[1720508084918,0.33912415,3083.9,3083.8,12.971]
[1720508085141,0.33912415,3083.9,3083.8,9.72825]
[1720508085363,5.76800086,3084.7,3084.6,3.24191]
[1720508085527,12.46,3085.2,3084.8,3.24162]
[1720508085528,18.22800086,3085.2,3084.8,3.24162]
[1720508085858,1.12302193,3085.1,3084.8,3.24162]
[1720508086031,1.12302193,3085.0,3084.9,3.24159]
[1720508086356,0.33919198,3085.1,3084.9,3.24159]
[1720508086560,0.33919198,3085.1,3084.7,3.24173]
[1720508086720,2.57190526,3085.1,3084.7,3.24173]
[1720508086920,2.57190526,3085.1,3084.3,3.24214]
[1720508087154,1.17146255,3085.0,3084.4,3.24211]
[1720508087336,0.37433678,3084.9,3084.4,3.24211]
[1720508087661,0.04861472,3084.8,3084.5,3.24201]
[1720508088821,0.04861472,3084.8,3084.2,3.24223]
[1720508089223,0.04861472,3084.8,3084.6,3.2419]
[1720508089419,0.33919198,3085.1,3084.6,3.2419]
[1720508089723,0.79069328,3085.0,3084.6,3.2419]
[1720508089921,0.04860516,3084.9,3084.6,3.2419]
[1720508091673,0.04860516,3084.9,3084.7,3.24179]
[1720508094315,0.04860516,3084.9,3084.8,3.2417]
[1720508095352,0.04860516,3084.9,3084.6,3.24183]
[1720508095556,0.04860516,3084.9,3084.6,3.24191]
[1720508096155,0.04860516,3084.9,3084.7,3.24179]
[1720508096473,0.04860516,3084.9,3084.5,3.24198]
[1720508097075,0.04860516,3084.9,3084.1,3.24243]